Workbook

Sheet 1
A2: Ф6А | B2: Ф8А | C2: Ф10А | D2: Ф12А | E2: Ф14А | F2: Ф16А | G2: Ф6 | H2: Ф8 | I2: Ф10 | J2: Ф12 | K2: Ф14 | L2: Ф16 | M2: Ф18 | N2: Ф20 | O2: Ф22 | P2: Ф25 | Q2: Ф28 | R2: Ф32 | S2: Ф1,2
A3: =SUM(A4:A1380) -> 0 | B3: =SUM(B4:B1380) -> 1.2 | C3: =SUM(C4:C1380) -> 0 | D3: =SUM(D4:D1380) -> 0 | E3: =SUM(E4:E1380) -> 0 | F3: =SUM(F4:F1380) -> 0 | G3: =SUM(G4:G1380) -> 0 | H3: =SUM(H4:H1380) -> 2.3 | I3: =SUM(I4:I1380) -> 28.844 | J3: =SUM(J4:J1380) -> 17.94 | K3: =SUM(K4:K1380) -> 0 | L3: =SUM(L4:L1380) -> 16.459 | M3: =SUM(M4:M1380) -> 0 | N3: =SUM(N4:N1380) -> 11.744 | O3: =SUM(O4:O1380) -> 0 | P3: =SUM(P4:P1380) -> 0 | Q3: =SUM(Q4:Q1380) -> 0 | R3: =SUM(R4:R1380) -> 0 | S3: =SUM(S4:S1380) -> 0.3 | T3: =SUM(A3:S3) -> 78.787 | U3: =SUM(U4:U8) -> 4426571.309
H4: =1.3*44700/44700 -> 1.3 | J4: =6*39050/39050 -> 6 | L4: =9*38650/38650 -> 9 | N4: =4*38650/38650 -> 4 | T4: =SUM(A4:S4) -> 20.3 | U4: =IF(A4<>0,REPLACE(FText(A4),1,SEARCH("/",FText(A4)),"")*A4,0)+IF(B4<>0,REPLACE(FText(B4),1,SEARCH("/",FText(B4)),"")*B4,0)+IF(C4<>0,REPLACE(FText(C4),1,SEARCH("/",FText(C4)),"")*C4,0)+IF(D4<>0,REPLACE(FText(D4),1,SEARCH("/",FText(D4)),"")*D4,0)+IF(E4<>0,REPLACE(FText(E4),1,SEARCH("/",FText(E4)),"")*E4,0)+IF(F4<>0,REPLACE(FText(F4),1,SEARCH("/",FText(F4)),"")*F4,0)+IF(G4<>0,REPLACE(FText(G4),1,SEARCH("/",FText(G4)),"")*G4,0)+IF(H4<>0,REPLACE(FText(H4),1,SEARCH("/",FText(H4)),"")*H4,0)+IF(I4<>0,REPLACE(FText(I4),1,SEARCH("/",FText(I4)),"")*I4,0)+IF(J4<>0,REPLACE(FText(J4),1,SEARCH("/",FText(J4)),"")*J4,0)+IF(K4<>0,REPLACE(FText(K4),1,SEARCH("/",FText(K4)),"")*K4,0)+IF(L4<>0,REPLACE(FText(L4),1,SEARCH("/",FText(L4)),"")*L4,0)+IF(M4<>0,REPLACE(FText(M4),1,SEARCH("/",FText(M4)),"")*M4,0)+IF(N4<>0,REPLACE(FText(N4),1,SEARCH("/",FText(N4)),"")*N4,0)+IF(O4<>0,REPLACE(FText(O4),1,SEARCH("/",FText(O4)),"")*O4,0)+IF(P4<>0,REPLACE(FText(P4),1,SEARCH("/",FText(P4)),"")*P4,0)+IF(Q4<>0,REPLACE(FText(Q4),1,SEARCH("/",FText(Q4)),"")*Q4,0)+IF(R4<>0,REPLACE(FText(R4),1,SEARCH("/",FText(R4)),"")*R4,0)+IF(S4<>0,REPLACE(FText(S4),1,SEARCH("/",FText(S4)),"")*S4,0) -> 794860
S5: =0.2*50000/50000 -> 0.2 | T5: =SUM(A5:S5) -> 0.2 | U5: 10000
B6: =1.2*73349.13/73349.13 -> 1.2 | I6: =4.784*67777.02/67777.02 -> 4.784 | J6: =5.07*64129.83/64129.83 -> 5.07 | L6: =4.359*63724.58/63724.58 -> 4.359 | N6: =4.554*63724.58/63724.58 -> 4.554 | S6: =0.1*83986.7/83986.7 -> 0.1 | T6: 20.067 | U6: 1313778.309
I7: =20*61000/61000 -> 20 | T7: 20 | U7: 1220000
H8: =1*68700/68700 -> 1 | I8: =4.06*60900/60900 -> 4.06 | J8: =6.87*58900/58900 -> 6.87 | L8: =3.1*58400/58400 -> 3.1 | N8: =3.19*58400/58400 -> 3.19 | T8: 18.22 | U8: 1087933
